bitfinex/quotes_SOLUSD_20240727
["timestamp","ask_amount","ask_price","bid_price","bid_amount"]
[1722084876597,5.3559,186.71,186.67,12.41]
[1722084877207,20.0,186.72,186.66,12.41]
[1722084877389,5.3568,186.68,186.65,12.41]
[1722084877588,5.3562,186.7,186.63,5.3581]
[1722084877794,5.3564,186.69,186.66,12.41]
[1722084878389,5.3564,186.69,186.62,5.3584]
[1722084878602,5.3564,186.69,186.66,12.41]
[1722084879210,5.3567,186.68,186.65,12.41]
[1722084879414,5.3571,186.67,186.64,12.41]
[1722084879706,5.3571,186.67,186.61,21.6174]
[1722084879894,5.3571,186.67,186.64,12.41]
[1722084880214,5.3567,186.68,186.64,12.41]
[1722084880402,5.3567,186.68,186.62,5.3583]
[1722084880712,5.3564,186.69,186.64,12.41]
[1722084881105,5.3564,186.69,186.62,5.3583]
[1722084881294,32.41,186.7,186.63,12.41]
[1722084881492,5.357,186.67,186.63,12.41]
[1722084881692,5.357,186.67,186.61,16.2588]
[1722084881892,5.357,186.67,186.63,12.41]
[1722084883011,5.3568,186.68,186.63,12.41]
[1722084883496,5.3568,186.68,186.62,12.41]
[1722084884001,5.3568,186.68,186.63,12.41]
[1722084884907,5.3571,186.67,186.63,12.41]
[1722084885413,5.3571,186.67,186.62,12.41]
[1722084886696,5.3568,186.68,186.62,12.41]
[1722084890213,32.41,186.65,186.58,17.7695]
[1722084890418,32.41,186.65,186.58,12.41]
[1722084890709,32.41,186.65,186.57,12.41]
[1722084890710,5.3584,186.62,186.57,12.41]
[1722084891295,13.3931,186.67,186.56,12.41]
[1722084891296,5.3587,186.61,186.56,12.41]
[1722084892810,12.41,186.62,186.54,34.6971]
[1722084893021,13.3946,186.65,186.54,12.41]
[1722084893022,32.41,186.61,186.54,12.41]
[1722084893531,5.3593,186.6,186.54,12.41]
[1722084893843,5.3593,186.6,186.55,12.41]
[1722084894506,5.3593,186.6,186.56,12.41]
[1722084894694,5.3588,186.61,186.56,12.41]
[1722084895404,5.3591,186.6,186.56,12.41]
[1722084896398,5.3591,186.6,186.55,12.41]
[1722084897214,5.3593,186.59,186.55,12.41]
[1722084897716,12.41,186.62,186.55,12.41]
[1722084897920,5.359,186.6,186.55,12.41]
[1722084898623,5.3593,186.59,186.55,12.41]
[1722084899020,5.3601,186.57,186.55,12.41]
[1722084899321,5.3596,186.58,186.54,12.41]
[1722084900207,20.0,186.61,186.53,12.41]
[1722084900208,5.36,186.57,186.53,12.41]
[1722084900518,5.3592,186.6,186.55,12.41]
[1722084900719,41.33876845,186.65,186.57,12.41]
[1722084900902,41.33876845,186.65,186.53,13.4022]
[1722084900903,5.05635618,186.64,186.58,12.41]
[1722084901103,41.33876845,186.65,186.59,12.41]
[1722084901303,5.05671212,186.64,186.59,12.41]
[1722084901514,53.74876845,186.65,186.58,12.41]
[1722084901718,5.05693768,186.64,186.58,12.41]
[1722084901929,53.74876845,186.65,186.58,12.41]
[1722084902225,5.05707408,186.64,186.58,12.41]
[1722084902421,12.41,186.64,186.57,12.41]
[1722084902605,5.3592,186.6,186.57,12.41]
[1722084902805,5.3593,186.59,186.57,12.41]
[1722084903213,12.41,186.64,186.57,12.41]
[1722084903214,5.359,186.6,186.57,12.41]
[1722084904321,5.359,186.6,186.56,12.41]
[1722084904720,32.41,186.63,186.56,12.41]
[1722084904721,5.3594,186.59,186.56,12.41]
[1722084905831,32.41,186.63,186.56,12.41]
[1722084906016,5.3602,186.56,186.53,12.41]
[1722084907129,5.3607,186.54,186.52,12.41]
[1722084907336,5.3602,186.56,186.52,12.41]
[1722084907831,5.3602,186.56,186.53,12.41]
[1722084909650,5.3605,186.55,186.52,12.41]
[1722084909938,12.41,186.59,186.52,12.41]
[1722084909939,5.3604,186.56,186.52,12.41]
[1722084910231,5.3604,186.56,186.53,12.41]
[1722084910933,5.3608,186.54,186.52,12.41]
[1722084911789,45.8089,186.59,186.52,12.41]
[1722084911790,5.3605,186.55,186.52,12.41]
[1722084911961,5.3608,186.54,186.51,12.41]
[1722084912240,5.3608,186.54,186.5,12.41]
[1722084913340,5.3611,186.53,186.5,12.41]
[1722084913525,20.0,186.57,186.5,12.41]
[1722084914116,5.3603,186.56,186.51,12.41]
[1722084914310,5.3605,186.55,186.51,12.41]
[1722084915520,5.3611,186.53,186.51,12.41]
[1722084916424,5.3611,186.53,186.5,12.41]
[1722084916761,5.3611,186.53,186.47,14.1968]
[1722084916762,5.3611,186.53,186.49,12.41]
[1722084916926,5.3607,186.54,186.51,12.41]
[1722084917252,5.3605,186.55,186.52,12.41]
[1722084917426,2.35760553,186.59,186.53,12.41]
[1722084917734,5.3596,186.58,186.55,12.41]
[1722084917915,5.3599,186.57,186.54,12.41]
[1722084919167,5.3604,186.55,186.52,12.41]
[1722084919728,5.3608,186.54,186.5,12.41]
[1722084919954,5.3611,186.53,186.48,13.4062]
[1722084920335,5.3611,186.53,186.5,12.41]
[1722084920856,5.3608,186.54,186.5,12.41]
[1722084925852,5.3608,186.54,186.48,13.4062]
[1722084926056,5.3608,186.54,186.49,12.41]
[1722084926753,20.0,186.56,186.47,0.7904]
[1722084926949,5.3613,186.52,186.47,0.7904]
[1722084927156,5.3616,186.52,186.47,0.7904]
[1722084927328,5.3616,186.51,186.47,0.7904]
[1722084927740,5.3616,186.51,186.47,13.2004]
[1722084928148,5.3618,186.51,186.47,0.7904]
[1722084928469,5.3612,186.53,186.48,12.41]
[1722084929752,5.3613,186.52,186.48,12.41]
[1722084930147,5.3613,186.52,186.47,0.7904]
[1722084930453,25.616,186.58,186.5,12.41]
[1722084930651,25.616,186.58,186.51,12.41]
[1722084930652,5.3605,186.55,186.51,12.41]
[1722084930857,45.0,186.57,186.51,12.41]
[1722084930858,5.3608,186.54,186.51,12.41]
[1722084931049,5.3605,186.55,186.51,12.41]
[1722084931457,5.3605,186.55,186.5,12.41]
[1722084932063,25.616,186.58,186.5,12.41]
[1722084932236,5.3608,186.54,186.5,12.41]
[1722084932858,5.3613,186.53,186.5,12.41]
[1722084933060,5.3613,186.53,186.49,12.41]
[1722084933239,5.3607,186.55,186.5,12.41]
[1722084933443,20.0,186.58,186.52,12.41]
[1722084933747,5.3604,186.56,186.51,12.41]
[1722084934147,5.3604,186.56,186.49,18.7672]
[1722084934479,5.3604,186.56,186.51,12.41]
[1722084934852,5.3605,186.55,186.51,12.41]
[1722084935937,20.0,186.6,186.54,12.41]
[1722084936149,21.31391678,186.62,186.51,16.3237]
[1722084936150,5.3602,186.56,186.51,16.3237]
[1722084936746,5.3605,186.55,186.51,16.3237]
[1722084936946,45.8081,186.6,186.51,16.3237]
[1722084936947,5.3608,186.54,186.51,16.3237]
[1722084937165,5.3608,186.54,186.52,12.41]
[1722084937363,5.3605,186.55,186.52,12.41]
[1722084939065,32.41,186.58,186.51,16.3237]
[1722084939365,5.3611,186.53,186.49,12.41]
[1722084939545,5.3613,186.52,186.49,12.41]
[1722084939745,5.3611,186.53,186.49,12.41]
[1722084940892,20.0,186.56,186.5,12.41]
[1722084941195,9.67175833,186.55,186.5,12.41]
[1722084941358,20.0,186.56,186.5,12.41]
[1722084941557,9.67176092,186.55,186.5,12.41]
[1722084941768,20.0,186.56,186.5,12.41]
[1722084942079,9.67176092,186.55,186.49,12.41]
[1722084942272,5.3612,186.53,186.49,12.41]
[1722084942471,5.3612,186.53,186.47,17.1141]
[1722084942472,5.3612,186.53,186.48,12.41]
[1722084942977,5.3608,186.54,186.49,12.41]
[1722084943155,5.3608,186.54,186.5,12.41]
[1722084943352,5.3605,186.55,186.48,5.3624]
[1722084943563,5.3602,186.56,186.52,12.41]
[1722084944350,5.3605,186.55,186.51,12.41]
[1722084944555,5.3602,186.56,186.53,12.41]
[1722084944955,5.3602,186.56,186.52,12.41]
[1722084945671,20.0,186.58,186.51,12.41]
[1722084945672,5.3605,186.55,186.51,12.41]
[1722084945855,20.0,186.56,186.49,12.41]
[1722084946054,5.3608,186.54,186.49,12.41]
[1722084946480,5.361,186.53,186.49,12.41]
[1722084947061,5.3608,186.54,186.49,12.41]
[1722084947259,5.3605,186.55,186.5,12.41]
[1722084948479,15.47424517,186.54,186.5,12.41]
[1722084948660,5.3605,186.55,186.5,12.41]
[1722084948856,9.67158265,186.54,186.52,12.41]
[1722084949061,20.0,186.58,186.52,12.41]
[1722084949268,25.14505984,186.57,186.52,12.41]
[1722084949466,25.14505984,186.56,186.52,12.41]
[1722084949667,5.3601,186.57,186.52,12.41]
[1722084949668,25.14505984,186.55,186.52,12.41]
[1722084949881,5.3601,186.57,186.52,12.41]
[1722084950079,25.14504561,186.56,186.52,12.41]
[1722084950274,15.4738774,186.55,186.52,12.41]
[1722084950468,15.4738774,186.54,186.52,12.41]
[1722084950858,15.4738774,186.56,186.52,12.41]
[1722084951076,9.6712114,186.55,186.52,12.41]
[1722084951259,15.4738774,186.54,186.52,12.41]
[1722084951459,5.3601,186.57,186.52,12.41]
[1722084951683,30.5053328,186.56,186.52,12.41]
[1722084951887,25.1450328,186.55,186.52,12.41]
[1722084952188,25.1450328,186.54,186.52,12.41]
[1722084952480,15.47424199,186.53,186.51,12.41]
[1722084952662,5.3603,186.56,186.51,12.41]
[1722084952863,25.1456494,186.55,186.51,12.41]
[1722084953069,25.1456494,186.54,186.51,12.41]
[1722084953268,20.0,186.56,186.48,13.4058]
[1722084953462,32.41,186.56,186.49,12.41]
[1722084953661,5.361,186.53,186.49,12.41]
[1722084954079,32.41,186.56,186.49,12.41]
[1722084954286,5.3609,186.54,186.48,12.41]
[1722084954490,25.14612977,186.53,186.48,12.41]
[1722084954676,5.3609,186.54,186.48,12.41]
[1722084954877,25.14626458,186.53,186.48,12.41]
[1722084955175,5.3609,186.54,186.47,22.4767]
[1722084955176,5.3609,186.54,186.49,12.41]
[1722084955475,25.14637959,186.53,186.49,12.41]
[1722084955676,5.3609,186.54,186.49,12.41]
[1722084955878,25.1463758,186.53,186.49,12.41]
[1722084956104,5.3609,186.54,186.49,12.41]
[1722084956265,25.14626302,186.53,186.49,12.41]
[1722084956467,5.3609,186.54,186.49,12.41]
[1722084956662,25.14624606,186.53,186.49,12.41]
[1722084956863,5.3609,186.54,186.49,12.41]
[1722084957064,15.47460978,186.53,186.49,12.41]
[1722084957264,9.67163111,186.53,186.49,12.41]
[1722084957464,15.4746234,186.52,186.49,12.41]
[1722084957676,15.4746234,186.51,186.49,12.41]
[1722084957877,20.8357234,186.53,186.49,12.41]
[1722084958075,15.4746234,186.52,186.49,12.41]
[1722084958567,20.8359234,186.52,186.49,12.41]
[1722084958872,15.4746234,186.51,186.49,12.41]
[1722084959183,15.4746234,186.51,186.48,12.41]
[1722084959365,15.4746234,186.52,186.48,12.41]
[1722084960343,15.47464062,186.51,186.48,12.41]
[1722084960466,5.3611,186.53,186.48,12.41]
[1722084960669,20.83603872,186.52,186.48,12.41]
[1722084960869,15.47463872,186.51,186.48,12.41]
[1722084961874,15.47463872,186.52,186.49,12.41]
[1722084962077,15.47479863,186.54,186.51,12.41]
[1722084962278,25.14639354,186.53,186.51,12.41]
[1722084962487,25.14639354,186.52,186.51,12.41]
[1722084963406,25.14639354,186.52,186.49,12.41]
[1722084963564,15.47478797,186.51,186.49,12.41]
[1722084963773,5.3615,186.52,186.49,12.41]
[1722084963970,25.14706748,186.51,186.49,12.41]
[1722084964170,5.3615,186.52,186.49,12.41]
[1722084964397,25.14733964,186.51,186.49,12.41]
[1722084964590,5.3615,186.52,186.49,12.41]
[1722084964886,25.14747176,186.51,186.49,12.41]
[1722084965091,5.3615,186.52,186.49,12.41]
[1722084965296,25.14735779,186.51,186.48,12.41]
[1722084965500,20.0,186.54,186.47,17.1141]
[1722084965686,25.14735471,186.53,186.47,17.1141]
[1722084965892,25.14735471,186.52,186.47,17.1141]
[1722084966076,5.3619,186.5,186.47,17.1141]
[1722084967376,15.47556771,186.49,186.47,17.1141]
[1722084967573,5.3619,186.5,186.47,17.1141]
[1722084967882,25.14895426,186.49,186.47,17.1141]
[1722084968073,15.47556642,186.48,186.47,17.1141]
[1722084968279,25.14920419,186.48,186.47,17.1141]
[1722084970303,5.3619,186.5,186.47,17.1141]
[1722084970504,25.15412908,186.48,186.47,17.1141]
[1722084971224,25.15424688,186.48,186.47,0.7904]
[1722084972414,25.15426713,186.48,186.47,0.7904]
[1722084973417,15.47946405,186.48,186.47,0.7904]
[1722084973613,15.47968492,186.48,186.47,0.7904]
[1722084974811,20.84218492,186.48,186.47,0.7904]
[1722084975013,30.51771423,186.48,186.47,0.7904]
[1722084977118,20.84425265,186.48,186.47,0.7904]
[1722084977421,20.84425265,186.48,186.4,30.41]
[1722084977422,5.3635,186.45,186.4,30.41]
[1722084978010,20.0,186.48,186.41,12.41]
[1722084978321,5.3628,186.47,186.42,12.41]
[1722084978992,5.3628,186.47,186.41,12.41]
[1722084980103,5.3631,186.46,186.41,12.41]
[1722084980420,5.3631,186.46,186.42,12.41]
[1722084982417,20.0,186.48,186.4,18.0]
[1722084982418,5.3634,186.45,186.4,18.0]
[1722084982904,5.3634,186.45,186.41,12.41]
[1722084984512,5.3628,186.47,186.43,12.41]
[1722084984697,5.3625,186.48,186.43,12.41]
[1722084985416,5.3628,186.47,186.43,12.41]
[1722084985616,5.3626,186.48,186.44,12.41]
[1722084986120,5.3621,186.5,186.45,12.41]
[1722084986323,5.3621,186.5,186.46,12.41]
[1722084988216,5.3623,186.49,186.46,12.41]
[1722084989606,20.0,186.52,186.46,12.41]
[1722084989809,5.3622,186.49,186.46,12.41]
[1722084990210,5.3625,186.48,186.46,12.41]
[1722084990422,5.3625,186.48,186.45,12.41]
[1722084991034,5.3622,186.49,186.45,12.41]
[1722084993137,20.0,186.49,186.43,22.2103]
[1722084993307,15.48160527,186.48,186.43,22.2103]
[1722084993502,5.3624,186.49,186.43,22.2103]
[1722084993801,37.7719,186.51,186.44,12.41]
[1722084994008,15.48019981,186.5,186.45,12.41]
[1722084994212,5.3622,186.5,186.45,12.41]
[1722084994416,20.84211217,186.49,186.45,12.41]
[1722084994731,5.3622,186.49,186.45,12.41]
[1722084996722,20.0,186.51,186.44,12.41]
[1722084997055,5.3625,186.48,186.44,12.41]
[1722084997614,5.3622,186.49,186.44,12.41]
[1722084998342,15.48046586,186.48,186.44,12.41]
[1722084998505,5.3622,186.49,186.44,12.41]
[1722084998710,15.48044498,186.48,186.44,12.41]
[1722084998906,5.3622,186.49,186.44,12.41]
[1722084999109,15.48044688,186.48,186.44,12.41]
[1722084999334,5.3622,186.49,186.44,12.41]
[1722084999524,15.48045542,186.48,186.44,12.41]
[1722084999834,5.3622,186.49,186.44,12.41]
[1722085000012,15.48052867,186.48,186.43,22.2103]
[1722085000213,5.3622,186.49,186.44,12.41]
[1722085000412,15.48052678,186.48,186.44,12.41]
[1722085000630,5.58134748,186.53,186.45,12.41]
[1722085000814,15.48045732,186.52,186.47,12.41]
[1722085001012,15.48045732,186.51,186.48,12.41]
[1722085001213,40.25552995,186.56,186.48,12.41]
[1722085001426,15.47783351,186.55,186.48,12.41]
[1722085001735,5.3616,186.52,186.48,12.41]
[1722085002042,15.47783351,186.51,186.48,12.41]
[1722085002227,5.3616,186.52,186.48,12.41]
[1722085002429,20.83921846,186.51,186.48,12.41]
[1722085002632,5.3616,186.51,186.48,12.41]
[1722085003133,5.3616,186.51,186.47,12.41]
[1722085003333,15.47794225,186.5,186.47,12.41]
[1722085003537,5.362,186.5,186.47,12.41]
[1722085003932,5.362,186.5,186.46,12.41]
[1722085004526,15.47858749,186.49,186.46,12.41]
[1722085004762,5.362,186.5,186.46,12.41]
[1722085004928,15.47887474,186.49,186.46,12.41]
[1722085005139,20.0,186.54,186.44,13.4086]
[1722085005331,15.47841186,186.53,186.47,12.41]
[1722085005520,15.47841186,186.52,186.47,12.41]
[1722085005721,15.47841186,186.51,186.47,12.41]
[1722085005921,5.3614,186.52,186.48,12.41]
[1722085006243,15.47714393,186.51,186.48,12.41]
[1722085006461,5.3614,186.52,186.48,12.41]
[1722085006623,20.83896486,186.51,186.48,12.41]
[1722085006829,5.3616,186.51,186.48,12.41]
[1722085007043,15.47738573,186.5,186.48,12.41]
[1722085007228,5.3614,186.52,186.48,12.41]
[1722085007541,15.47766424,186.51,186.48,12.41]
[1722085007728,15.47766424,186.5,186.48,12.41]
[1722085007918,5.3616,186.51,186.44,18.7719]
[1722085008124,15.47757545,186.5,186.47,12.41]
[1722085008317,20.0,186.57,186.49,27.5829]
[1722085008637,20.83632543,186.56,186.51,12.41]
[1722085008817,15.47592543,186.55,186.51,12.41]
[1722085009019,15.47592543,186.54,186.51,12.41]
[1722085009231,15.47592543,186.53,186.51,12.41]
[1722085009435,5.3604,186.56,186.51,12.41]
[1722085009627,5.3604,186.56,186.49,33.9403]
[1722085009628,15.47523997,186.55,186.52,12.41]
[1722085009821,15.47523997,186.54,186.52,12.41]
[1722085010141,15.47523997,186.53,186.52,12.41]
[1722085010688,15.47524376,186.53,186.52,12.41]
[1722085011942,20.0,186.59,186.52,12.41]
[1722085011943,5.3602,186.56,186.52,12.41]
[1722085012144,5.3602,186.56,186.49,33.9405]
[1722085012436,5.3602,186.56,186.5,12.41]
[1722085012636,5.3602,186.56,186.5,17.7719]
[1722085013341,5.3602,186.56,186.51,12.41]
[1722085013863,5.3602,186.56,186.5,12.41]
[1722085014251,12.41,186.56,186.49,28.5784]
[1722085014550,21.33852245,186.6,186.48,6.1808]
[1722085014551,25.3612,186.53,186.48,6.1808]
[1722085014845,25.3611,186.53,186.46,31.1806]
[1722085016558,25.3611,186.53,186.47,12.41]
[1722085017544,25.3611,186.53,186.47,17.7727]
[1722085017852,5.3611,186.53,186.47,17.7727]
[1722085018447,5.3611,186.53,186.48,12.41]
[1722085020056,5.3614,186.52,186.48,12.41]
[1722085020461,5.3614,186.52,186.47,12.41]
[1722085021731,5.3617,186.51,186.47,12.41]
[1722085022349,25.3617,186.51,186.46,12.41]
[1722085022544,25.3617,186.51,186.45,27.5829]
[1722085022951,5.3613,186.52,186.46,12.41]
[1722085023245,15.47837991,186.51,186.47,12.41]
[1722085023463,5.3613,186.52,186.47,12.41]
[1722085023640,15.4783951,186.51,186.47,12.41]
[1722085023841,5.3613,186.52,186.47,12.41]
[1722085024158,15.478397,186.51,186.47,12.41]
[1722085024352,5.3613,186.52,186.47,12.41]
[1722085024561,15.47838466,186.51,186.47,12.41]
[1722085024739,5.3617,186.51,186.47,12.41]
[1722085024940,25.3625,186.48,186.43,6.1808]
[1722085025254,5.3622,186.49,186.44,12.41]
[1722085025493,5.362,186.5,186.45,12.41]
[1722085025754,15.47986119,186.49,186.45,12.41]
[1722085025947,5.3616,186.51,186.45,12.41]
[1722085026148,15.4797903,186.5,186.45,12.41]
[1722085026349,15.4797903,186.49,186.45,12.41]
[1722085026547,5.3616,186.51,186.45,12.41]
[1722085026750,20.0,186.52,186.45,12.41]
[1722085026751,15.47971895,186.5,186.45,12.41]
[1722085026945,20.84191895,186.49,186.45,12.41]
[1722085027147,5.3622,186.49,186.45,12.41]
[1722085030053,5.3622,186.49,186.44,12.41]
[1722085030265,15.4797951,186.48,186.44,12.41]
[1722085030560,5.3622,186.49,186.44,12.41]
[1722085030767,15.47980648,186.48,186.44,12.41]
[1722085030963,5.3622,186.49,186.44,12.41]
[1722085031261,15.47980648,186.48,186.44,12.41]
[1722085031758,5.3622,186.49,186.44,12.41]
[1722085031963,15.47980648,186.48,186.44,12.41]
[1722085032170,5.3622,186.49,186.44,12.41]
[1722085032464,15.47980648,186.48,186.44,12.41]
[1722085032677,5.3622,186.49,186.44,12.41]
[1722085032881,15.47980838,186.48,186.44,12.41]
[1722085033159,5.3622,186.49,186.44,12.41]
[1722085033372,15.47979794,186.48,186.44,12.41]
[1722085033574,5.3622,186.49,186.44,12.41]
[1722085033740,15.47979794,186.48,186.44,12.41]
[1722085033941,5.3622,186.49,186.44,12.41]
[1722085034247,5.3631,186.46,186.43,12.41]
[1722085034572,5.3628,186.47,186.42,12.41]
[1722085034764,15.48139822,186.46,186.42,12.41]
[1722085034988,25.3625,186.48,186.42,12.41]
[1722085035165,15.48132958,186.47,186.44,12.41]
[1722085035350,5.3625,186.48,186.44,12.41]
[1722085035551,15.4809437,186.47,186.44,12.41]
[1722085035858,5.3625,186.48,186.44,12.41]
[1722085036058,15.48083425,186.47,186.44,12.41]
[1722085036245,5.3625,186.48,186.43,12.41]
[1722085036445,15.48068299,186.47,186.43,12.41]
[1722085036644,5.3622,186.49,186.43,12.41]
[1722085036862,15.48046954,186.48,186.43,12.41]
[1722085037164,15.48046954,186.47,186.44,12.41]
[1722085037358,15.48046954,186.48,186.44,12.41]
[1722085037665,15.48084469,186.47,186.44,12.41]
[1722085037843,5.3626,186.48,186.44,12.41]
[1722085038043,15.48084469,186.47,186.44,12.41]
[1722085038246,5.3626,186.48,186.44,12.41]
[1722085038549,20.84360388,186.47,186.41,18.7754]
[1722085038747,5.3629,186.47,186.41,18.7754]
[1722085038953,5.363,186.46,186.41,13.4109]
[1722085039959,5.3639,186.43,186.4,18.0]
[1722085040158,5.3637,186.44,186.4,18.0]
[1722085040949,12.41,186.43,186.4,18.0]
[1722085041153,5.3645,186.41,186.4,18.0]
[1722085042042,20.8509862,186.41,186.4,18.0]
[1722085044659,5.3645,186.41,186.4,18.0]
[1722085046974,17.7745,186.41,186.4,3.0669992]
[1722085047167,62.7745,186.41,186.4,3.0669992]
[1722085047962,5.3645,186.41,186.4,3.0669992]
[1722085048159,5.3639,186.43,186.4,3.0669992]
[1722085048472,5.3625,186.48,186.42,12.41]
[1722085048729,5.3625,186.48,186.44,12.41]
[1722085049062,5.3625,186.48,186.43,12.41]
[1722085053668,5.3628,186.47,186.42,12.41]
[1722085055376,5.3631,186.46,186.42,12.41]
[1722085056462,5.3628,186.47,186.43,12.41]
[1722085056983,25.3625,186.48,186.43,12.41]
[1722085060586,20.0,186.48,186.43,12.41]
[1722085060883,5.3628,186.47,186.43,12.41]
[1722085061185,5.3628,186.47,186.42,12.41]
[1722085061680,5.3625,186.48,186.42,12.41]
[1722085062266,5.3625,186.48,186.43,12.41]
[1722085062877,5.3631,186.46,186.4,16.4783992]
[1722085063179,20.0,186.48,186.4,15.4769992]
[1722085063180,5.3634,186.45,186.4,15.4769992]
[1722085063382,5.3631,186.46,186.41,12.41]
[1722085063598,5.3628,186.47,186.41,12.41]
[1722085063781,5.3631,186.46,186.41,12.41]
[1722085066886,5.3628,186.47,186.41,12.41]
[1722085067087,5.3628,186.47,186.41,17.7743]
[1722085067289,5.3628,186.47,186.42,12.41]
[1722085068484,32.41,186.51,186.44,12.41]
[1722085068665,70.15831545,186.5,186.44,12.41]
[1722085068862,25.15831545,186.49,186.44,12.41]
[1722085069066,25.15831545,186.48,186.45,12.41]
[1722085069365,20.0,186.51,186.45,12.41]
[1722085069567,25.15597745,186.5,186.45,12.41]
[1722085069790,9.67537594,186.49,186.45,12.41]
[1722085070084,20.0,186.51,186.45,12.41]
[1722085070288,30.51739817,186.5,186.44,5.3635]
[1722085070472,15.03735314,186.49,186.43,6.43650328]
[1722085070783,5.3622,186.49,186.45,12.41]
[1722085071087,5.3619,186.5,186.45,12.41]
[1722085071398,5.3619,186.5,186.46,12.41]
[1722085073273,5.3619,186.5,186.45,12.41]
[1722085074222,5.3622,186.49,186.45,12.41]
[1722085074986,32.41,186.47,186.4,3.0669992]
[1722085075187,26.8082,186.51,186.4,3.0669992]
[1722085075188,5.3637,186.44,186.4,3.0669992]
[1722085075883,20.0,186.45,186.4,3.0669992]
[1722085077099,20.0,186.45,186.4,15.4769992]
[1722085077291,5.3636,186.44,186.4,15.4769992]
[1722085078891,5.3634,186.45,186.4,15.4769992]
[1722085079097,5.3634,186.45,186.41,12.41]
[1722085080183,5.3637,186.44,186.41,12.41]
[1722085080483,5.3637,186.44,186.4,3.0669992]
[1722085080484,5.3637,186.44,186.4,15.4769992]
[1722085080671,5.3634,186.45,186.4,15.4769992]
[1722085081884,5.3631,186.46,186.41,12.41]
[1722085082079,20.0,186.49,186.42,12.41]
[1722085082387,30.52188415,186.48,186.45,12.41]
[1722085082598,25.15938415,186.47,186.45,12.41]
[1722085082780,5.3619,186.5,186.45,12.41]
[1722085082977,30.51823608,186.49,186.45,12.41]
[1722085083197,5.3622,186.49,186.45,12.41]
[1722085084494,20.0,186.51,186.45,12.41]
[1722085084495,5.362,186.5,186.45,12.41]
[1722085084898,32.41,186.51,186.44,12.41]
[1722085085200,25.15500658,186.5,186.44,12.41]
[1722085085379,9.67500253,186.49,186.44,12.41]
[1722085085581,15.03690253,186.5,186.45,12.41]
[1722085085833,9.67496228,186.49,186.45,12.41]
[1722085086002,5.3625,186.48,186.44,12.41]
[1722085086377,32.41,186.51,186.44,12.41]
[1722085086700,5.3624,186.49,186.44,12.41]
[1722085086998,5.3619,186.5,186.45,12.41]
[1722085087203,9.67503712,186.49,186.45,12.41]
[1722085087379,5.3619,186.5,186.45,12.41]
[1722085087692,9.67501495,186.49,186.45,12.41]
[1722085088097,5.3619,186.5,186.45,12.41]
[1722085088607,9.67500371,186.49,186.45,12.41]
[1722085088787,5.3619,186.5,186.45,12.41]
[1722085089041,9.674996,186.49,186.45,12.41]
[1722085089200,5.3619,186.5,186.45,12.41]
[1722085089405,9.67495803,186.49,186.45,12.41]